fUSD/lending_fUSD_20251108
["ID","MTS","AMOUNT","RATE_DAILY","PERIOD"]
[393410044,1762613445276,-26951.6679005,0.0003717,4]
[393410045,1762613445286,-999.0,0.0003718,120]
[393410046,1762613445296,-150.0,0.00037189,20]
[393410047,1762613445307,-139163.863734,0.0003719,4]
[393410048,1762613445317,-134758.339502,0.0003719,4]
[393410049,1762613445327,-1217.92259029,0.00037199,30]
[393410050,1762613445337,-67219.76185951,0.000372,120]
[393410051,1762613445348,-67219.76185948,0.000372,120]
[393410052,1762613445358,-51412.97528565,0.000372,120]
[393410054,1762613445468,-1464.08325378,0.000372,120]
[393410056,1762613445481,-476.59485294,0.000372,120]
[393410057,1762613445492,-6744.81980147,0.000372,120]
[393410058,1762613445505,-416.093,0.000372,120]
[393410059,1762613445523,-512.39045289,0.000372,120]
[393410060,1762613445639,-236.87095978,0.00034055,2]
[393410061,1762613445649,-2007.91978261,0.000372,120]
[393410062,1762613445927,-427.6699999,0.000372,120]
[393410063,1762613445940,-894.15888223,0.000372,120]
[393410064,1762613445986,-2863.05654801,0.000372,120]
[393410065,1762613445996,-10171.32402398,0.000372,120]
[393410066,1762613446007,-6943.19871099,0.000372,120]
[393410067,1762613446019,-46722.42071702,0.000372,120]
[393410081,1762613463864,300.0,0.00018352,60]
[393410082,1762613465300,960.94059347,0.00018352,120]
[393410083,1762613465867,195.0,0.00018352,120]
[393410084,1762613468280,300.0,0.00018352,120]
[393410085,1762613468366,300.0,0.00021393,120]
[393410086,1762613468469,352.39811301,0.00028458,120]
[393410087,1762613477825,-1018.7976,0.00016584,2]
[393410088,1762613477856,-500.0,0.00016683,2]
[393410089,1762613477885,-500.0,0.00016683,2]
[393410090,1762613477911,-408.19445828,0.00016683,2]
[393410091,1762613483117,173.85116769,0.00016683,2]
[393410092,1762613484548,1000.0,0.00016584,2]
[393410093,1762613490068,4061.9302,0.00016584,2]
[393410094,1762613524194,556720.75069107,0.00038993,60]
[393410095,1762613526080,151.0,0.00016674,2]
[393410096,1762613526684,151.0,0.00016674,2]
[393410097,1762613527438,151.0,0.00016674,2]
[393410098,1762613528095,151.0,0.00016674,2]
[393410099,1762613528398,500.0,0.000167,2]
[393410100,1762613528745,151.0,0.00016674,2]
[393410101,1762613529415,151.0,0.00016674,2]
[393410102,1762613530027,151.0,0.00016674,2]
[393410103,1762613530672,151.0,0.00016674,2]
[393410104,1762613531311,151.0,0.00016674,2]
[393410105,1762613532056,151.0,0.00016674,2]
[393410106,1762613532590,151.0,0.00016674,2]
[393410107,1762613533229,151.0,0.00016674,2]
[393410108,1762613533835,151.0,0.00016674,2]
[393410109,1762613534514,151.0,0.00016674,2]
[393410110,1762613535142,151.0,0.00016674,2]
[393410111,1762613535837,151.0,0.00016674,2]
[393410112,1762613536618,151.0,0.00016674,2]
[393410113,1762613537254,151.0,0.00016674,2]
[393410114,1762613537902,151.0,0.00016674,2]
[393410116,1762613538618,151.0,0.00016674,2]
[393410117,1762613538907,256.21770197,0.00016674,2]
[393410118,1762613546337,158.0,0.0003013,120]
[393410119,1762613547120,180.0,0.0003013,120]
[393410121,1762613573245,367.2862,0.00016584,2]
[393410122,1762613606115,228.02271612,0.0003013,120]
[393410123,1762613636661,264283.2771,0.00016584,2]
[393410124,1762613652989,1000.0,0.00016584,2]
[393410125,1762613764616,160.0,0.00018,2]
[393410126,1762613766169,160.0,0.00018,2]
[393410128,1762613787904,161.84,0.00018,3]
[393410129,1762613862707,160.0,0.000301,120]
[393410130,1762613945604,155.0,0.00030136,120]
[393410132,1762614053395,236.87095978,0.00018,2]
[393410142,1762614631870,-3521.71639607,0.0002,2]
[393410143,1762614631881,-958.01119287,0.0002,2]
[393410144,1762614631892,-520.27241106,0.0002,2]
[393410145,1762614631902,-262.29792628,0.000219,2]
[393410146,1762614631913,-308.27204506,0.000219,2]
[393410147,1762614631922,-300.0,0.00022,2]
[393410148,1762614631936,-1000.43537673,0.00026103,2]
[393410149,1762614631945,-1200.0,0.00028199,2]
[393410150,1762614631955,-1000.0,0.000282,2]
[393410151,1762614631964,-570.56997133,0.00028854,2]
[393410152,1762614631974,-2000.0,0.000299,2]
[393410153,1762614631984,-550.0,0.00029986,2]
[393410154,1762614631994,-574.0,0.00029987,2]
[393410155,1762614632003,-2911.26,0.00029987,2]
[393410156,1762614632013,-9999.99,0.00029987,2]
[393410157,1762614632022,-194.52,0.00029987,2]
[393410158,1762614632031,-2142.0,0.00029987,2]
[393410159,1762614632040,-277.26642779,0.0003,5]
[393410160,1762614632049,-150.99,0.0003041,2]
[393410161,1762614632059,-500.0,0.0003075,5]
[393410162,1762614632071,-500.0,0.0003075,5]
[393410163,1762614632081,-500.0,0.0003075,2]
[393410165,1762614632091,-500.0,0.0003075,5]
[393410167,1762614632101,-500.0,0.0003075,5]
[393410169,1762614632111,-500.0,0.000315,5]
[393410171,1762614632120,-500.0,0.000315,5]
[393410173,1762614632129,-500.0,0.000315,5]
[393410174,1762614632139,-500.0,0.000315,5]
[393410176,1762614632148,-500.0,0.000315,5]
[393410178,1762614632158,-520.11501514,0.000315,5]
[393410180,1762614632169,-355.25282514,0.000315,2]
[393410181,1762614632178,-1000.0,0.000319,2]
[393410182,1762614632189,-574.0,0.00032987,2]
[393410183,1762614632198,-2142.0,0.00032987,2]
[393410184,1762614632208,-2000.0,0.00033337,120]
[393410187,1762614632217,-2000.0,0.000336,2]
[393410189,1762614632226,-245.0,0.00034004,2]
[393410192,1762614632236,-200.0,0.00034518,10]
[393410195,1762614632245,-250.0,0.0003514,2]
[393410197,1762614632254,-5000.0,0.00035526,2]
[393410199,1762614632263,-526.95366312,0.00035623,2]
[393410201,1762614632271,-174.27,0.00035629,2]
[393410203,1762614632280,-1000.0,0.00035666,2]
[393410205,1762614632289,-175.031,0.00035723,43]
[393410207,1762614632299,-2930.108,0.00035723,43]
[393410209,1762614632308,-536.0,0.00035723,2]
[393410211,1762614632321,-570.56997133,0.00035808,2]
[393410214,1762614632334,-536.0,0.00035854,120]
[393410216,1762614632344,-2933.76,0.00035879,120]
[393410217,1762614632353,-1000.0,0.00035908,2]
[393410218,1762614632362,-2142.0,0.00035987,2]
[393410219,1762614632371,-536.0,0.00036213,120]
[393410220,1762614632381,-612.02239563,0.00036302,30]
[393410221,1762614632391,-526.95366312,0.00036315,2]
[393410222,1762614632401,-884.42863256,0.00036544,2]
[393410223,1762614632410,-35252.9,0.00036578,2]
[393410224,1762614632419,-157.3,0.00036652,2]
[393410225,1762614632429,-536.0,0.00036741,2]
[393410226,1762614632438,-300.0,0.00036769,2]
[393410227,1762614632448,-221.80400124,0.00036805,2]
[393410228,1762614632457,-400.0,0.00036894,5]
[393410229,1762614632466,-150.73,0.00036899,2]
[393410230,1762614632475,-884.42863256,0.00036903,2]
[393410231,1762614632484,-300.0,0.0003692,2]
[393410232,1762614632494,-300.0,0.00036921,2]
[393410233,1762614632503,-300.0,0.00036923,2]
[393410234,1762614632513,-300.0,0.00036927,2]
[393410235,1762614632525,-300.0,0.00036928,2]
[393410236,1762614632534,-300.0,0.00036931,2]
[393410237,1762614632543,-300.0,0.00036933,2]
[393410238,1762614632552,-300.0,0.00036935,2]
[393410239,1762614632566,-300.0,0.00036939,2]
[393410240,1762614632576,-300.0,0.0003694,2]
[393410241,1762614632586,-300.0,0.00036941,2]
[393410242,1762614632595,-300.0,0.00036945,2]
[393410243,1762614632606,-300.0,0.00036947,2]
[393410244,1762614632616,-300.0,0.00036948,2]
[393410245,1762614632625,-300.0,0.00036959,2]
[393410246,1762614632635,-300.0,0.00036966,2]
[393410247,1762614632644,-300.0,0.00036967,2]
[393410248,1762614632653,-300.0,0.00036968,2]
[393410249,1762614632662,-300.0,0.00036978,2]
[393410250,1762614632671,-300.0,0.00036979,2]
[393410251,1762614632680,-300.0,0.0003698,2]
[393410252,1762614632691,-300.0,0.00036985,2]
[393410253,1762614632700,-300.0,0.00036986,2]
[393410254,1762614632712,-1000.0,0.0003699,7]
[393410255,1762614632721,-300.0,0.00036991,2]
[393410256,1762614632732,-300.0,0.00036996,2]
[393410257,1762614632741,-300.0,0.00036996,2]
[393410258,1762614632750,-300.0,0.00036998,2]
[393410259,1762614632759,-1000.0,0.00037,7]
[393410260,1762614632768,-300.0,0.00037001,2]
[393410261,1762614632777,-536.0,0.00037001,2]
[393410262,1762614632786,-218.28985519,0.00037007,16]
[393410263,1762614632796,-4288.8399226,0.00037007,2]
[393410264,1762614632809,-300.0,0.00037008,2]
[393410265,1762614632819,-300.0,0.00037012,2]
[393410266,1762614632829,-300.0,0.00037019,2]
[393410267,1762614632839,-300.0,0.0003702,2]
[393410268,1762614632848,-300.0,0.00037026,2]
[393410269,1762614632857,-300.0,0.00037027,2]
[393410270,1762614632867,-300.0,0.00037035,2]
[393410271,1762614632876,-300.0,0.0003704,2]
[393410272,1762614632886,-300.0,0.00037041,2]
[393410273,1762614632895,-300.0,0.00037042,2]
[393410274,1762614632909,-300.0,0.00037046,2]
[393410275,1762614632919,-300.0,0.00037062,2]
[393410276,1762614632928,-300.0,0.00037062,2]
[393410277,1762614632937,-300.0,0.00037064,2]
[393410278,1762614632947,-1000.0,0.00037066,7]
[393410279,1762614632956,-1000.0,0.00037072,7]
[393410280,1762614632965,-300.0,0.00037073,2]
[393410281,1762614632975,-300.0,0.00037076,2]
[393410282,1762614632984,-300.0,0.00037081,2]
[393410283,1762614632993,-300.0,0.00037082,2]
[393410284,1762614633003,-300.0,0.00037082,2]
[393410285,1762614633012,-300.0,0.00037082,2]
[393410286,1762614633022,-300.0,0.00037094,2]
[393410287,1762614633032,-1671.0,0.00037096,5]
[393410288,1762614633041,-1000.0,0.00037096,7]
[393410289,1762614633051,-300.0,0.00037099,2]
[393410290,1762614633060,-300.0,0.00037099,2]
[393410291,1762614633071,-300.0,0.000371,2]
[393410292,1762614633080,-109.52473556,0.000371,2]
[393410293,1762614633095,-1482.40156637,0.000371,2]
[393410294,1762614633106,-300.0,0.00037101,2]
[393410295,1762614633116,-300.0,0.00037102,2]
[393410296,1762614633126,-500.0,0.00037106,7]
[393410297,1762614633135,-515.94292169,0.00037106,120]
[393410298,1762614633146,-1024.41824949,0.00037107,2]
[393410312,1762614637611,-1188.0,0.00029987,2]
[393410313,1762614637621,-1188.0,0.00032987,2]
[393410314,1762614637631,-526.95366312,0.00037007,2]
[393410315,1762614637641,-908.83124612,0.00037107,2]
[393410316,1762614637652,-2080.0,0.00037107,2]
[393410317,1762614637665,-18317.89671864,0.00037107,2]
[393410318,1762614637841,-7061.32939105,0.00037107,2]
[393410319,1762614637853,-1611.51836,0.00037107,2]
[393410330,1762614639660,-1031.23677243,0.00037107,2]
[393410332,1762614639765,-123937.87442977,0.00037107,2]
[393410333,1762614639775,-3956.8395992,0.00037107,2]
[393410334,1762614639786,-156.46605092,0.00037109,15]
[393410335,1762614639797,-300.0,0.00037117,2]
[393410336,1762614639807,-300.0,0.0003712,2]
[393410337,1762614639818,-300.0,0.00037122,2]
[393410338,1762614639829,-300.0,0.00037123,2]
[393410339,1762614639840,-300.0,0.00037129,2]
[393410340,1762614639851,-300.0,0.00037129,2]
[393410341,1762614639861,-300.0,0.00037129,2]
[393410342,1762614639871,-300.0,0.00037129,2]
[393410343,1762614639881,-300.0,0.00037131,2]
[393410344,1762614639891,-300.0,0.00037131,2]
[393410345,1762614639900,-300.0,0.00037139,2]
[393410346,1762614639911,-861.05938,0.00037143,2]
[393410347,1762614639920,-300.0,0.00037145,2]
[393410348,1762614639930,-300.0,0.00037149,2]
[393410349,1762614639940,-300.0,0.00037149,2]
[393410350,1762614639949,-300.0,0.00037155,2]
[393410351,1762614639959,-300.0,0.00037158,2]
[393410352,1762614639968,-300.0,0.00037163,2]
[393410353,1762614639977,-536.0,0.00037163,2]
[393410354,1762614639987,-300.0,0.00037164,2]
[393410355,1762614639997,-300.0,0.00037166,2]
[393410356,1762614640007,-33142.1049888,0.0003717,4]
[393410357,1762614640017,-300.0,0.00037176,2]
[393410358,1762614640027,-300.0,0.00037179,2]
[393410359,1762614640036,-300.0,0.0003718,2]
[393410360,1762614640046,-300.0,0.00037181,2]
[393410361,1762614640055,-300.0,0.00037183,2]
[393410362,1762614640066,-300.0,0.00037185,2]
[393410363,1762614640091,-300.0,0.00037186,2]
[393410364,1762614640100,-300.0,0.00037187,2]
[393410365,1762614640110,-152.83891669,0.00037189,4]
[393410366,1762614640120,-33142.1049888,0.0003719,4]
[393410368,1762614640131,-14120.51605341,0.000372,120]
[393410369,1762614640141,-14120.51605339,0.000372,120]
[393410370,1762614640151,-14120.51605339,0.000372,120]
[393410371,1762614640161,-11197.7130615,0.000372,120]
[393410372,1762614640175,-2060.21575046,0.000372,120]
[393410373,1762614640191,-862.58724143,0.000372,120]
[393410374,1762614640201,-867.95,0.000372,5]
[393410375,1762614640211,-4288.83992259,0.00037218,2]
[393410376,1762614640221,-164.83884475,0.00037223,15]
[393410377,1762614640230,-536.0,0.00037292,7]
[393410378,1762614640240,-1174.59295514,0.000373,2]
[393410386,1762614642840,-906.0,0.00029987,2]
[393410387,1762614642851,-906.0,0.00032987,2]
[393410388,1762614642862,-688.42,0.00034223,2]
[393410389,1762614642872,-618.91276107,0.00036414,2]
[393410390,1762614643002,-216.17723893,0.00036414,2]
[393410391,1762614643012,-712.42410846,0.000373,2]
[393410392,1762614643024,-112.9829364,0.000373,2]
[393410393,1762614643034,-1591.92630189,0.00037301,2]
[393410394,1762614643044,-325.0,0.00037323,2]
[393410395,1762614643054,-325.0,0.00037323,2]
[393410396,1762614643063,-483.25,0.00037342,2]
[393410397,1762614643073,-549.24,0.00037342,2]
[393410398,1762614643083,-536.0,0.00037359,2]
[393410399,1762614643093,-500.0,0.00037365,7]
[393410400,1762614643103,-500.0,0.00037365,7]
[393410401,1762614643113,-500.0,0.00037365,7]
[393410402,1762614643123,-150.0,0.0003737,2]
[393410403,1762614643132,-604.95523631,0.00037397,2]
[393410404,1762614643144,-600.73476369,0.00037397,2]
[393410405,1762614643154,-176.94,0.00037397,2]
[393410406,1762614643163,-1205.69,0.00037397,2]
[393410407,1762614643173,-726.35,0.00037397,2]
[393410408,1762614643183,-479.58,0.00037397,2]
[393410409,1762614643197,-1205.69,0.00037397,2]
[393410410,1762614643207,-549.24,0.00037397,2]
[393410411,1762614643216,-1098.48,0.00037397,2]
[393410412,1762614643225,-2000.0,0.00037415,120]
[393410413,1762614643235,-325.0,0.00037426,2]
[393410414,1762614643246,-4288.83992259,0.00037429,2]
[393410415,1762614643256,-325.0,0.00037431,2]
[393410416,1762614643269,-1591.92630189,0.00037501,2]
[393410417,1762614643278,-1012.0,0.00037619,20]
[393410418,1762614643287,-325.0,0.00037628,2]
[393410419,1762614643296,-4288.83992259,0.0003764,2]
[393410420,1762614643306,-5099.0,0.00037667,120]
[393410421,1762614643316,-302.0,0.000377,2]
[393410422,1762614643327,-445.0,0.000377,2]
[393410423,1762614643336,-1591.92630189,0.00037702,2]
[393410424,1762614643346,-325.0,0.00037724,2]
[393410425,1762614643355,-5099.0,0.00037749,2]
[393410426,1762614643365,-335.37,0.00037758,2]
[393410427,1762614643375,-300.0,0.00037763,2]
[393410428,1762614643384,-300.0,0.00037765,2]
[393410429,1762614643397,-300.0,0.00037774,2]
[393410430,1762614643407,-164.83884472,0.00037784,15]
[393410431,1762614643416,-624.65474343,0.00037822,2]
[393410432,1762614643426,-300.0,0.00037842,2]
[393410433,1762614643435,-536.0,0.00037847,2]
[393410434,1762614643445,-151.0,0.00037847,120]
[393410435,1762614643455,-151.0,0.00037847,120]
[393410436,1762614643466,-4288.83992259,0.00037851,2]
[393410437,1762614643476,-33142.1049888,0.00037863,4]
[393410438,1762614643486,-300.0,0.00037866,2]
[393410439,1762614643496,-300.0,0.00037867,2]
[393410440,1762614643507,-1000.0,0.00037893,120]
[393410441,1762614643517,-300.0,0.000379,13]
[393410442,1762614643526,-4023.0,0.000379,14]
[393410443,1762614643539,-1591.92630189,0.00037903,2]
[393410444,1762614643549,-300.0,0.00037921,2]
[393410445,1762614643558,-2500.0,0.00037925,10]
[393410446,1762614643569,-525.69797717,0.00037934,10]
[393410447,1762614643587,-603.32475265,0.00037934,10]
[393410448,1762614643611,-410.30174383,0.00037934,10]
[393410449,1762614643624,-960.67552635,0.00037934,10]
[393410451,1762614643634,-649.49477361,0.00037942,10]
[393410453,1762614643649,-308.47383664,0.00037942,10]
[393410500,1762614645892,-1460.77105184,0.00037942,10]
[393410505,1762614645954,-81.26033791,0.00037942,10]
[393410506,1762614645964,-2500.0,0.00037947,10]
[393410507,1762614645974,-1902.47737268,0.00037951,10]
[393410508,1762614645986,-597.52262732,0.00037951,10]
[393410509,1762614645999,-1302.58467233,0.00037956,10]
[393410510,1762614646011,-400.0,0.00037956,10]
[393410511,1762614646023,-797.41532767,0.00037956,10]
[393410512,1762614646032,-1846.56046063,0.00037956,10]
[393410513,1762614646041,-2500.0,0.0003796,10]
[393410514,1762614646051,-1665.34049873,0.0003796,10]
[393410515,1762614646060,-321.28496805,0.00037992,120]
[393410516,1762614646070,-154.78103038,0.00038,13]
[393410517,1762614646196,-545.21896962,0.00038,13]
[393410518,1762614646207,-794.55839049,0.00038,3]
[393410519,1762614646217,-181.0,0.00038,30]
[393410520,1762614646226,-167.07081457,0.00038,30]
[393410521,1762614646403,-4202.64794387,0.00038006,10]
[393410522,1762614646414,-1012.0,0.00038007,20]
[393410523,1762614646424,-500.0,0.00038046,7]
[393410524,1762614646434,-4288.83992259,0.00038062,2]
[393410525,1762614646444,-11553.83393764,0.0003808,4]
[393410526,1762614646456,-365.12820074,0.0003808,4]
[393410527,1762614646468,-505.01796416,0.0003808,4]
[393410528,1762614646480,-11626.40680805,0.0003808,4]
[393410529,1762614646492,-616.0,0.0003808,4]
[393410530,1762614646505,-8475.71807821,0.0003808,4]
[393410531,1762614646515,-1100.0,0.000381,13]
[393410532,1762614646525,-1591.92630189,0.00038103,2]
[393410533,1762614646539,-5099.0,0.00038147,2]
[393410534,1762614646549,-549.24,0.00038164,2]
[393410535,1762614646559,-549.24,0.00038164,2]
[393410536,1762614646568,-169.11,0.00038164,2]
[393410537,1762614646580,-169.11,0.00038164,2]
[393410538,1762614646589,-169.11,0.00038164,2]
[393410539,1762614646599,-168.83,0.00038164,2]
[393410540,1762614646609,-500.0,0.00038187,7]
[393410541,1762614646619,-500.0,0.00038187,7]
[393410542,1762614646629,-5099.0,0.00038191,2]
[393410543,1762614646638,-1500.0,0.000382,13]
[393410544,1762614646658,-300.0,0.0003822,2]
[393410545,1762614646669,-300.0,0.00038253,2]
[393410546,1762614646679,-300.0,0.00038263,2]
[393410547,1762614646690,-4288.83992259,0.00038273,2]
[393410548,1762614646700,-1000.0,0.00038289,30]
[393410549,1762614646711,-1900.0,0.000383,13]
[393410550,1762614646721,-1591.92630189,0.00038304,2]
[393410551,1762614646731,-164.83884472,0.00038345,15]
[393410552,1762614646742,-500.0,0.00038356,2]
[393410553,1762614646752,-247.88203341,0.00038356,2]
[393410554,1762614646761,-300.0,0.00038361,2]
[393410555,1762614646771,-1012.0,0.00038394,20]
[393410556,1762614646781,-300.0,0.000384,14]
[393410557,1762614646791,-536.0,0.00038401,7]
[393410558,1762614646801,-300.0,0.00038405,2]
[393410559,1762614646811,-300.0,0.00038428,2]
[393410560,1762614646820,-2258.22851729,0.00038444,4]
[393410561,1762614646835,-356.44414662,0.00038444,4]
[393410562,1762614646847,-904.64662748,0.00038444,4]
[393410567,1762615486017,308.48,0.00013699,2]
[393410569,1762615507938,7530693.90377136,0.00018,2]
[393410570,1762615510397,1052.32012632,0.000154,2]
[393410577,1762615663696,537.27,0.00017804,2]
[393410578,1762615668185,140197.05135875,0.00018,2]
[393410579,1762615672035,55055.01490918,0.00015,2]
[393410605,1762615831798,-416.68989607,0.00018704,2]
[393410606,1762615831862,-120.58010393,0.00018704,2]
[393410607,1762615831874,-213.91396877,0.00019605,2]
[393410608,1762615831952,-323.35603123,0.00019605,2]
[393410609,1762615831962,-308.48,0.00020187,2]
[393410610,1762615831971,-537.27,0.00020505,2]
[393410611,1762615831980,-1000.0,0.00020545,2]
[393410612,1762615831989,-1000.0,0.00020545,2]
[393410613,1762615831998,-286.9,0.00020545,2]
[393410614,1762615832007,-537.27,0.00021405,2]
[393410615,1762615832016,-156.93,0.00022,2]
[393410616,1762615832025,-537.27,0.00022306,2]
[393410617,1762615832034,-175.82453998,0.00022499,43]
[393410619,1762615832043,-300.0,0.000226,60]
[393410621,1762615832056,-537.27,0.00023206,2]
[393410623,1762615832065,-537.27,0.00024106,2]
[393410625,1762615832075,-156.93,0.00024126,2]
[393410627,1762615832084,-537.27,0.00025007,2]
[393410629,1762615832093,-537.27,0.00025907,2]
[393410631,1762615832102,-156.93,0.00026252,7]
[393410633,1762615832112,-308.48,0.00026676,2]
[393410635,1762615832121,-537.27,0.00026807,2]
[393410637,1762615832130,-537.27,0.00027707,2]
[393410639,1762615832140,-156.93,0.00028378,30]
[393410641,1762615832149,-537.27,0.00028608,2]
[393410643,1762615832160,-537.27,0.00029508,2]
[393410645,1762615832169,-537.27,0.00030408,2]
[393410647,1762615832179,-156.93,0.00030503,30]
[393410649,1762615832188,-537.27,0.00031309,2]
[393410651,1762615832197,-1012.20377711,0.00032,7]
[393410653,1762615832206,-812.0,0.0003203,2]
[393410655,1762615832215,-1273.0,0.0003203,2]
[393410657,1762615832225,-906.0,0.0003203,2]
[393410659,1762615832234,-1316.0,0.0003203,2]
[393410662,1762615832243,-159.945,0.0003203,2]
[393410664,1762615832253,-405.24453527,0.0003203,2]
[393410671,1762615837685,-201.75546473,0.0003203,2]
[393410672,1762615837696,-160.405288,0.0003203,2]
[393410676,1762615837772,-298.22300672,0.0003203,2]
[393410677,1762615837860,-115.37170528,0.0003203,2]
[393410678,1762615837873,-308.52582964,0.0003203,2]
[393410687,1762615840053,-402.59570384,0.0003203,2]
[393410694,1762615843227,-821.72570488,0.0003203,2]
[393410695,1762615843240,-315.0301018,0.0003203,2]
[393410698,1762615846229,-4812.12265984,0.0003203,2]
[393410699,1762615846239,-2142.001,0.0003203,2]
[393410700,1762615846249,-537.27,0.00032209,2]
[393410701,1762615846259,-156.93,0.00032629,30]
[393410702,1762615846268,-756.74446792,0.00033,10]
[393410706,1762615846518,-246.56873455,0.00033,10]
[393410707,1762615846530,-334.57810948,0.00033,10]
[393410708,1762615846541,-283.27499976,0.00033,10]
[393410718,1762617031964,-337.05,0.00019435,2]
[393410719,1762617031974,-267.59,0.00019476,2]
[393410720,1762617031983,-164.34580639,0.0002,4]
[393410721,1762617031993,-162.64913491,0.00023723,2]
[393410722,1762617032003,-375.0,0.00028484,7]
[393410723,1762617032012,-450.0,0.00028484,7]
[393410724,1762617032022,-375.0,0.00028621,7]
[393410725,1762617032032,-824.3650587,0.00029032,2]
[393410726,1762617032044,-1008.51,0.00029032,2]
[393410727,1762617032055,-776.15703811,0.00029032,2]
[393410728,1762617032213,-2252.24998,0.00029032,2]
[393410729,1762617032226,-2683.27727508,0.00029032,2]
[393410730,1762617032237,-257.87596969,0.00029032,2]
[393410775,1762617037909,-2300.12821243,0.00029032,2]
[393410776,1762617037921,-1928.80999808,0.00029032,2]
[393410777,1762617038178,-2432.9842022,0.00029032,2]
[393410788,1762617040126,-15908.37634841,0.00029032,2]
[393410789,1762617040136,-4939.0842266,0.00029032,2]
[393410790,1762617040146,-1362.8743166,0.00029032,2]
[393410791,1762617040156,-10641.9368963,0.00029032,2]
[393410792,1762617040166,-269.9724243,0.00029032,2]
[393410793,1762617040176,-1572.62391856,0.00029032,2]
[393410794,1762617040186,-3110.806,0.00031984,31]
[393410795,1762617040196,-175.263,0.00031984,31]
[393410796,1762617040206,-717.54948,0.00032209,2]
[393410797,1762617040216,-10641.9368963,0.00032709,2]
[393410798,1762617040226,-150.99,0.00032709,2]
[393410799,1762617040236,-9999.99,0.00032709,2]
[393410800,1762617040249,-1362.8743166,0.00032718,2]
[393410801,1762617040259,-4939.0842266,0.00032737,2]
[393410802,1762617040270,-3423.0,0.00032761,2]
[393410803,1762617040279,-1315.0,0.00032761,2]
[393410804,1762617040290,-574.0,0.00032761,2]
[393410805,1762617040300,-1596.0,0.00032761,2]
[393410806,1762617040310,-820.0,0.00032761,2]
[393410807,1762617040321,-1273.0,0.00032761,2]
[393410808,1762617040332,-849.381,0.00032761,2]
[393410809,1762617040346,-2142.0,0.00032761,2]
[393410810,1762617040356,-4407.347,0.00032761,2]
[393410811,1762617040366,-5066.665,0.00032761,2]
[393410812,1762617040376,-500.0,0.000328,2]
[393410813,1762617040386,-30372.7340827,0.0003286,2]
[393410814,1762617040396,-8378.83368829,0.00033,10]
[393410816,1762617040406,-200.0,0.00033,2]
[393410818,1762617040416,-200.0,0.00033,2]
[393410819,1762617040426,-537.27,0.00033109,2]
[393410820,1762617040435,-308.48,0.00033165,2]
[393410821,1762617040445,-3147.9312,0.00033286,2]
[393410822,1762617040455,-6586.06836423,0.00033294,2]
[393410823,1762617040465,-174.27,0.00033324,2]
[393410824,1762617040475,-269.9724243,0.00033328,2]
[393410825,1762617040485,-200.0,0.0003333,2]
[393410826,1762617040495,-200.0,0.0003333,2]
[393410827,1762617040505,-30684.9072,0.00033386,2]
[393410828,1762617040515,-478.09862864,0.00033389,2]
[393410829,1762617040525,-1000.0,0.00033394,2]
[393410830,1762617040535,-200.0,0.00033663,2]
[393410831,1762617040547,-200.0,0.00033663,2]
[393410832,1762617040557,-6586.0683642,0.0003392,2]
[393410833,1762617040568,-2372.26,0.00033924,2]
[393410834,1762617040578,-200.0,0.00034,2]